bitfinex/quotes_BTCUSD_20240703
["timestamp","ask_amount","ask_price","bid_price","bid_amount"]
[1720038120748,0.014185,59893.0,59892.0,0.94512348]
[1720038121041,0.091485,59893.0,59892.0,0.94512348]
[1720038122012,0.091485,59893.0,59892.0,0.567731]
[1720038122344,0.091485,59893.0,59892.0,0.61118948]
[1720038122901,0.091485,59893.0,59892.0,0.94512348]
[1720038123093,0.010185,59893.0,59892.0,1.50272348]
[1720038123229,0.010185,59893.0,59892.0,1.83665748]
[1720038123634,0.010185,59893.0,59892.0,2.02595628]
[1720038123635,0.009185,59893.0,59892.0,2.02595628]
[1720038124447,0.011185,59893.0,59892.0,2.02595628]
[1720038124649,0.012185,59893.0,59892.0,2.02595628]
[1720038124991,0.010185,59893.0,59892.0,2.02595628]
[1720038125170,0.009185,59893.0,59892.0,2.02895628]
[1720038125375,0.009185,59893.0,59892.0,2.33295628]
[1720038125574,0.009185,59893.0,59892.0,2.66689028]
[1720038125778,0.009185,59893.0,59892.0,2.36689028]
[1720038125979,0.009185,59893.0,59892.0,2.02995628]
[1720038126399,0.009185,59893.0,59892.0,2.04195628]
[1720038127139,0.009185,59893.0,59892.0,2.03795628]
[1720038127336,0.009185,59893.0,59892.0,2.05095628]
[1720038127539,0.009185,59893.0,59892.0,1.77685628]
[1720038127743,0.009185,59893.0,59892.0,1.10342228]
[1720038127744,0.086485,59893.0,59892.0,1.10342228]
[1720038127951,0.009185,59893.0,59892.0,1.11642228]
[1720038128152,0.009185,59893.0,59892.0,1.13042228]
[1720038128515,0.009185,59893.0,59892.0,1.11642228]
[1720038128716,0.009185,59893.0,59892.0,1.10342228]
[1720038129089,0.009185,59893.0,59892.0,1.12842228]
[1720038132061,0.086485,59893.0,59892.0,0.13328848]
[1720038132272,0.253449,59893.0,59892.0,0.025]
[1720038132487,0.83923214,59893.0,59892.0,0.025]
[1720038132692,1.94209846,59893.0,59892.0,0.025]
[1720038132935,2.65857388,59893.0,59892.0,0.025]
[1720038133344,2.65857388,59893.0,59892.0,0.012]
[1720038133949,0.167009,59877.0,59876.0,0.04183]
[1720038134146,0.17739214,59877.0,59876.0,0.04183]
[1720038134352,0.167009,59877.0,59876.0,0.04183]
[1720038134496,0.18616755,59877.0,59876.0,0.08528848]
[1720038134693,0.01915855,59877.0,59876.0,0.25229948]
[1720038134894,0.166998,59881.0,59880.0,0.04183]
[1720038135099,0.19109513,59881.0,59880.0,0.04183]
[1720038136205,0.19109513,59881.0,59880.0,0.08528848]
[1720038136607,0.19109513,59881.0,59880.0,0.04183]
[1720038137414,0.19109513,59881.0,59880.0,0.08528848]
[1720038137730,0.02409713,59881.0,59879.0,0.04183]
[1720038137945,0.166999,59881.0,59880.0,0.04183]
[1720038138084,0.19157299,59881.0,59880.0,0.04183]
[1720038138286,0.167001,59880.0,59876.0,0.49091]
[1720038138491,0.167006,59878.0,59876.0,0.04183]
[1720038138687,0.02457399,59877.0,59876.0,0.04183]
[1720038139297,0.02457399,59877.0,59876.0,0.08528848]
[1720038139494,0.334023,59876.0,59875.0,0.04183]
[1720038139792,0.19158499,59876.0,59875.0,0.04183]
[1720038140609,0.19096392,59876.0,59875.0,0.04183]
[1720038140964,0.19096392,59876.0,59875.0,0.04383]
[1720038141774,0.02395292,59876.0,59875.0,0.08728848]
[1720038141977,0.02395292,59876.0,59875.0,0.92236048]
[1720038142199,0.333977,59885.0,59881.0,0.04183]
[1720038142200,0.166995,59882.0,59881.0,0.04183]
[1720038142406,0.19110023,59882.0,59881.0,0.04183]
[1720038142943,0.19110023,59882.0,59881.0,1.08057428]
[1720038142944,0.02410523,59882.0,59881.0,1.08057428]
[1720038143120,0.38240742,59895.0,59889.0,0.04183]
[1720038143121,0.166974,59890.0,59889.0,0.04183]
[1720038143357,0.19108952,59890.0,59889.0,0.04183]
[1720038143682,0.02411552,59890.0,59889.0,0.82976348]
[1720038143888,0.009185,59893.0,59891.0,0.04183]
[1720038143889,0.03711633,59893.0,59891.0,0.04183]
[1720038144257,0.01340477,59892.0,59891.0,0.04183]
[1720038144372,0.18037177,59892.0,59891.0,0.06483]
[1720038144864,0.18037177,59892.0,59891.0,0.04183]
[1720038145070,0.01340477,59892.0,59891.0,0.3920978]
[1720038145276,0.01340477,59892.0,59891.0,0.08528848]
[1720038145428,0.166972,59890.0,59889.0,0.04183]
[1720038145630,0.18037677,59890.0,59889.0,0.04183]
[1720038145834,0.01340477,59890.0,59889.0,0.04183]
[1720038146036,0.01340477,59890.0,59889.0,0.04483]
[1720038146448,0.01340477,59890.0,59889.0,0.04183]
[1720038146649,0.166967,59892.0,59889.0,0.04183]
[1720038146815,0.3708835,59896.0,59891.0,0.04183]
[1720038147012,0.01343227,59895.0,59893.0,0.04183]
[1720038147265,0.0369695,59896.0,59892.0,0.04183]
[1720038147440,0.18039148,59894.0,59892.0,0.04183]
[1720038147635,0.01342948,59893.0,59892.0,0.04183]
[1720038148046,0.01342948,59893.0,59892.0,0.08528848]
[1720038148548,0.01342948,59893.0,59892.0,0.04183]
[1720038148898,0.01342948,59893.0,59892.0,0.08528848]
[1720038149776,0.166959,59895.0,59892.0,0.04183]
[1720038149931,0.0140638,59893.0,59892.0,0.04183]
[1720038150130,0.166959,59895.0,59894.0,0.04183]
[1720038150357,0.166959,59895.0,59893.0,0.04183]
[1720038150358,0.18101697,59895.0,59893.0,0.04183]
[1720038150570,0.01405797,59894.0,59893.0,0.04183]
[1720038150771,0.01405797,59894.0,59893.0,0.74647928]
[1720038151029,0.009185,59896.0,59894.0,0.333923]
[1720038151171,0.009185,59896.0,59895.0,1.10671802]
[1720038151374,0.009185,59896.0,59895.0,1.44063502]
[1720038151593,0.009185,59896.0,59895.0,1.73729628]
[1720038152472,0.013185,59896.0,59895.0,1.73729628]
[1720038152930,0.009185,59896.0,59895.0,1.73729628]
[1720038153134,0.009185,59896.0,59895.0,1.79529628]
[1720038156463,0.009185,59896.0,59895.0,2.12921328]
[1720038156671,0.009185,59896.0,59895.0,2.68081328]
[1720038159111,0.009185,59896.0,59895.0,2.78121328]
[1720038159317,0.009185,59896.0,59895.0,3.08121328]
[1720038160176,0.009185,59896.0,59895.0,3.28111328]
[1720038160350,0.009185,59896.0,59895.0,3.38111328]
[1720038162274,0.009185,59896.0,59895.0,3.58111328]
[1720038162711,0.009185,59896.0,59895.0,3.94854028]
[1720038164346,0.009185,59896.0,59895.0,3.93454028]
[1720038164551,0.009185,59896.0,59895.0,3.94854028]
[1720038164752,0.009185,59896.0,59895.0,3.93454028]
[1720038165159,0.009185,59896.0,59895.0,3.94854028]
[1720038165611,0.009185,59896.0,59895.0,3.93454028]
[1720038165967,0.009185,59896.0,59895.0,3.94854028]
[1720038167383,0.009185,59896.0,59895.0,3.64854028]
[1720038167589,0.009185,59896.0,59895.0,3.94854028]
[1720038170443,0.009185,59896.0,59895.0,3.61462328]
[1720038170583,0.009185,59896.0,59895.0,3.38146628]
[1720038170783,0.009185,59896.0,59895.0,3.68146628]
[1720038173263,0.009185,59896.0,59895.0,4.01538328]
[1720038173462,0.009185,59896.0,59895.0,3.68146628]
[1720038173975,0.009185,59896.0,59895.0,4.01538328]
[1720038175985,0.009185,59896.0,59895.0,4.15410801]
[1720038176678,0.009185,59896.0,59895.0,4.34740801]
[1720038176905,0.009185,59896.0,59895.0,4.20868328]
[1720038177257,0.009185,59896.0,59895.0,4.34740856]
[1720038177723,0.009185,59896.0,59895.0,4.15410856]
[1720038177925,0.009185,59896.0,59895.0,4.34740856]
[1720038178128,0.009185,59896.0,59895.0,4.20868328]
[1720038178325,0.009185,59896.0,59895.0,4.34741044]
[1720038178725,0.009185,59896.0,59895.0,3.52019344]
[1720038178952,0.009185,59896.0,59895.0,3.82019344]
[1720038179111,0.009185,59896.0,59895.0,3.52019344]
[1720038179545,0.009185,59896.0,59895.0,3.35846628]
[1720038179861,0.009185,59896.0,59895.0,2.80686628]
[1720038180523,0.009185,59896.0,59895.0,1.60913928]
[1720038180765,0.009185,59896.0,59895.0,1.42829628]
[1720038180981,0.009185,59896.0,59895.0,0.25958728]
[1720038181185,0.270085,59896.0,59895.0,0.25958728]
[1720038181391,0.270085,59896.0,59895.0,0.42654528]
[1720038181608,0.437041,59896.0,59895.0,0.014]
[1720038181815,1.075253,59896.0,59895.0,0.014]
[1720038182015,0.166958,59895.0,59894.0,0.04183]
[1720038183596,0.166958,59895.0,59893.0,0.00083]
[1720038183913,1.062984,59894.0,59893.0,0.00083]
[1720038184115,1.73083,59894.0,59893.0,0.00083]
[1720038184322,1.396907,59894.0,59893.0,0.00083]
[1720038185451,1.396907,59894.0,59893.0,0.00183]
[1720038185813,1.74737152,59894.0,59893.0,0.00383]
[1720038186197,1.74737152,59894.0,59893.0,0.00083]
[1720038186561,1.73383,59894.0,59893.0,0.00083]
[1720038186947,1.398907,59894.0,59893.0,0.00183]
[1720038187147,1.400907,59894.0,59893.0,0.00183]
[1720038187357,1.401907,59894.0,59893.0,0.00183]
[1720038188256,0.730061,59894.0,59893.0,0.12281582]
[1720038188474,0.5631,59894.0,59893.0,0.1662743]
[1720038188674,0.5651,59894.0,59893.0,0.08711848]
[1720038189305,0.009185,59896.0,59894.0,0.16696]
[1720038189579,0.009185,59896.0,59895.0,0.08528848]
[1720038190535,0.009185,59896.0,59895.0,0.04183]
[1720038191698,0.009185,59896.0,59895.0,0.04283]
[1720038192341,0.009185,59896.0,59895.0,0.08928848]
[1720038192621,0.009185,59896.0,59895.0,0.04583]
[1720038192826,0.009185,59896.0,59895.0,0.004]
[1720038193046,0.009185,59896.0,59895.0,0.04583]
[1720038193203,0.009185,59896.0,59895.0,0.11228848]
[1720038193829,0.009185,59896.0,59895.0,0.27924648]
[1720038194371,0.009185,59896.0,59895.0,0.027]
[1720038194581,0.510053,59896.0,59895.0,0.004]
[1720038194826,0.843965,59896.0,59895.0,0.004]
[1720038195197,1.77941852,59896.0,59895.0,0.004]
[1720038195422,1.428965,59896.0,59895.0,0.004]
[1720038195631,0.834807,59894.0,59893.0,0.00083]
[1720038196442,0.500884,59894.0,59893.0,0.04266]
[1720038196643,0.500884,59894.0,59893.0,0.00083]
[1720038196912,0.766141,59896.0,59895.0,0.04183]
[1720038197100,0.599185,59896.0,59894.0,0.04183]
[1720038197262,0.599185,59896.0,59895.0,0.04183]
[1720038198193,0.598185,59896.0,59895.0,0.04183]
[1720038198405,0.001,59894.0,59893.0,0.00083]
[1720038198604,0.167961,59894.0,59893.0,0.00083]
[1720038198806,0.169961,59894.0,59893.0,0.00083]
[1720038199004,0.166961,59894.0,59893.0,0.00083]
[1720038199182,0.595185,59896.0,59893.0,0.00083]
[1720038199387,0.597185,59896.0,59895.0,0.04183]
[1720038199547,0.60754956,59896.0,59895.0,0.04183]
[1720038199764,0.60654956,59896.0,59895.0,0.04183]
[1720038199967,0.011185,59896.0,59895.0,0.24558728]
[1720038200345,0.009185,59896.0,59895.0,0.76946228]
[1720038201592,0.0195499,59896.0,59895.0,0.76946228]
[1720038201794,0.0215499,59896.0,59895.0,0.77046228]
[1720038202206,0.009185,59896.0,59895.0,1.10337928]
[1720038202416,0.010185,59896.0,59895.0,1.10337928]
[1720038202615,0.010185,59896.0,59895.0,1.43729628]
[1720038203288,0.010185,59896.0,59895.0,2.67201328]
[1720038203470,0.010185,59896.0,59895.0,2.33809628]
[1720038203710,0.010185,59896.0,59895.0,2.67201328]
[1720038204046,0.009185,59896.0,59895.0,2.67201328]
[1720038204244,0.009185,59896.0,59895.0,2.33809628]
[1720038204445,0.009185,59896.0,59895.0,2.30809628]
[1720038204872,0.009185,59896.0,59895.0,2.33809628]
[1720038205635,0.009185,59896.0,59895.0,2.35009628]
[1720038205833,0.009185,59896.0,59895.0,2.38357628]
[1720038205946,0.009185,59896.0,59895.0,2.37957628]
[1720038206515,0.009185,59896.0,59895.0,2.30809628]
[1720038206687,0.009185,59896.0,59895.0,1.42829628]
[1720038207089,0.009185,59896.0,59895.0,1.44229628]
[1720038207415,0.009185,59896.0,59895.0,1.42829628]
[1720038207972,0.009185,59896.0,59895.0,1.45129628]
[1720038208571,0.009185,59896.0,59895.0,1.43729628]
[1720038208924,0.009185,59896.0,59895.0,1.46529628]
[1720038209254,0.009185,59896.0,59895.0,1.45129628]
[1720038209446,0.009185,59896.0,59895.0,1.43729628]
[1720038209848,0.009185,59896.0,59895.0,1.45129628]
[1720038209991,0.009185,59896.0,59895.0,1.46429628]
[1720038212495,0.009185,59896.0,59895.0,1.49429628]
[1720038213745,0.009185,59896.0,59895.0,1.79429628]
[1720038214769,0.009185,59896.0,59895.0,2.12821328]
[1720038221683,0.009185,59896.0,59895.0,1.76429628]
[1720038221884,0.009185,59896.0,59895.0,1.79429628]
[1720038222974,0.009185,59896.0,59895.0,1.76429628]
[1720038223177,0.009185,59896.0,59895.0,1.13037928]
[1720038223629,0.009185,59896.0,59895.0,1.46429628]
[1720038224813,0.009185,59896.0,59895.0,1.49429628]
[1720038227478,0.009185,59896.0,59895.0,1.46429628]
[1720038229689,0.009185,59896.0,59895.0,1.49429628]
[1720038230387,0.009185,59896.0,59895.0,1.46429628]
[1720038230622,0.009185,59896.0,59895.0,1.49429628]
[1720038231455,0.009185,59896.0,59895.0,1.46429628]
[1720038231976,0.02100757,59896.0,59895.0,1.13037928]
[1720038232396,0.02100757,59896.0,59895.0,1.46429628]
[1720038232809,0.02100757,59896.0,59895.0,0.43954528]
[1720038232810,0.34430757,59896.0,59895.0,0.43954528]
[1720038233011,0.58660757,59896.0,59895.0,0.11228848]
[1720038233845,0.58660757,59896.0,59895.0,0.08528848]
[1720038234256,0.574785,59896.0,59895.0,0.09328848]
[1720038234428,0.59016626,59896.0,59895.0,0.11628848]
[1720038234641,1.09103426,59896.0,59895.0,0.008]
[1720038234830,1.4249462,59896.0,59895.0,0.008]
[1720038235384,1.4249462,59896.0,59895.0,0.014]
[1720038236757,1.0910342,59896.0,59895.0,0.014]
[1720038237198,1.075653,59896.0,59895.0,0.014]
[1720038237346,1.09604414,59896.0,59895.0,0.014]
[1720038238055,0.59517614,59896.0,59895.0,0.014]
[1720038238249,0.76213214,59896.0,59895.0,0.014]
[1720038238875,0.76213214,59896.0,59895.0,0.006]
[1720038239337,1.09604414,59896.0,59895.0,0.006]
[1720038239541,1.09604414,59896.0,59893.0,0.00083]
[1720038239689,0.02039114,59895.0,59893.0,0.00083]
[1720038240307,0.166959,59895.0,59893.0,0.00083]
[1720038240488,0.04517673,59894.0,59893.0,0.00083]
[1720038240689,1.94990673,59894.0,59893.0,0.00083]
[1720038240870,2.03244811,59894.0,59893.0,0.00083]
[1720038241070,2.1321949,59894.0,59893.0,0.00083]
[1720038241717,2.05298963,59894.0,59893.0,0.00083]
[1720038241919,2.15275419,59894.0,59893.0,0.00083]
[1720038242322,2.13621267,59894.0,59893.0,0.00183]
[1720038242477,2.15275419,59894.0,59893.0,0.00183]
[1720038242681,2.54707367,59894.0,59893.0,0.00183]
[1720038242901,2.55107367,59894.0,59893.0,0.00283]
[1720038243808,2.80924367,59894.0,59893.0,0.00283]
[1720038244004,2.80924367,59894.0,59878.0,0.05845139]
[1720038244005,0.501009,59879.0,59878.0,0.05845139]
[1720038244216,1.10711327,59879.0,59878.0,0.05845139]
[1720038245421,1.45766079,59879.0,59878.0,0.004]
[1720038245624,2.59316426,59879.0,59878.0,0.004]
[1720038245835,2.59316426,59879.0,59867.0,0.00083]
[1720038245836,1.002237,59866.0,59848.0,0.04183]
[1720038246011,1.002237,59866.0,59845.0,0.04345848]
[1720038246012,0.1192,59854.0,59851.0,0.108728]
[1720038246237,0.1933,59856.0,59854.0,0.04183]
[1720038246238,0.167068,59856.0,59854.0,0.04183]
[1720038246462,0.1192,59861.0,59852.0,0.04183]
[1720038246463,0.04521002,59853.0,59852.0,0.04183]
[1720038246663,0.1933,59857.0,59853.0,0.04183]
[1720038246664,0.167073,59854.0,59853.0,0.04183]
[1720038246865,0.21129249,59854.0,59853.0,0.04183]
[1720038247039,0.167076,59853.0,59852.0,0.04183]
[1720038247244,0.21129549,59853.0,59852.0,0.04183]
[1720038247423,0.167076,59853.0,59852.0,0.04183]
[1720038248143,0.2106765,59853.0,59852.0,0.04183]
[1720038248320,0.167076,59853.0,59852.0,0.04183]
[1720038248503,0.167076,59853.0,59852.0,0.04283]
[1720038248710,0.173076,59853.0,59852.0,0.08628848]
[1720038248918,0.181076,59853.0,59852.0,0.08728848]
[1720038249344,0.014,59853.0,59852.0,0.25436648]
[1720038249561,0.014,59853.0,59852.0,0.27736648]
[1720038250312,0.014,59853.0,59852.0,1.41547928]
[1720038250811,0.014,59853.0,59852.0,1.43210067]
[1720038251012,0.008,59853.0,59852.0,0.76278667]
[1720038251515,0.167064,59858.0,59857.0,0.08528848]
[1720038251669,0.334098,59863.0,59861.0,0.04183]
[1720038251871,0.501152,59862.0,59861.0,0.05845139]
[1720038252273,0.167045,59864.0,59862.0,0.04183]
[1720038252476,0.08255444,59865.0,59862.0,0.04183]
[1720038252477,0.41664344,59865.0,59862.0,0.04183]
[1720038252729,0.41664344,59865.0,59863.0,0.023]
[1720038252730,0.167045,59864.0,59863.0,0.023]
[1720038252933,0.501135,59864.0,59863.0,0.023]
[1720038253140,0.501135,59864.0,59862.0,0.023]
[1720038253141,0.167049,59863.0,59862.0,0.023]
[1720038253337,0.24959644,59865.0,59862.0,0.06483]
[1720038254000,0.167046,59864.0,59862.0,0.06483]
[1720038254538,0.177046,59864.0,59863.0,0.04183]
[1720038254714,0.177046,59864.0,59863.0,0.023]
[1720038254924,0.01,59864.0,59863.0,0.06483]
[1720038255356,0.018,59864.0,59863.0,0.06483]
[1720038255867,0.01,59864.0,59863.0,0.06483]
[1720038256060,0.167042,59865.0,59863.0,0.023]
[1720038256271,0.509135,59864.0,59863.0,0.002]
[1720038256508,0.519135,59864.0,59863.0,0.002]
[1720038257291,0.19550906,59864.0,59863.0,0.002]
[1720038257592,0.52159906,59864.0,59863.0,0.001]
[1720038257797,0.52159906,59864.0,59863.0,0.002]
[1720038257976,1.04898906,59864.0,59863.0,0.002]
[1720038258154,0.71489906,59864.0,59863.0,0.001]
[1720038258616,0.71489906,59864.0,59863.0,0.002]
[1720038258617,0.72289906,59864.0,59863.0,0.002]
[1720038260410,1.05698906,59864.0,59863.0,0.002]
[1720038260619,1.07353058,59864.0,59863.0,0.002]
[1720038262878,1.05698906,59864.0,59863.0,0.002]
[1720038264047,0.018,59864.0,59863.0,0.04383]
[1720038264446,0.185045,59864.0,59863.0,0.04383]
[1720038264996,0.519135,59864.0,59863.0,0.002]
[1720038265977,1.06306652,59864.0,59863.0,0.002]
[1720038266197,1.046525,59864.0,59863.0,0.002]
[1720038266397,1.06306652,59864.0,59863.0,0.002]
[1720038266601,1.046525,59864.0,59863.0,0.002]
[1720038266940,1.06306652,59864.0,59863.0,0.002]
[1720038267656,1.046525,59864.0,59863.0,0.002]
[1720038267879,1.73005587,59864.0,59863.0,0.002]
[1720038268113,1.97065587,59864.0,59863.0,0.002]
[1720038270744,1.97112287,59864.0,59863.0,0.002]
[1720038271197,1.97112471,59864.0,59863.0,0.002]
[1720038274467,2.05507212,59864.0,59863.0,0.002]
[1720038277079,2.05458697,59864.0,59863.0,0.002]
[1720038279623,1.7891023,59864.0,59863.0,0.002]
[1720038280126,1.95467613,59864.0,59863.0,0.002]
[1720038281785,2.21284613,59864.0,59863.0,0.002]
[1720038283016,1.95467613,59864.0,59863.0,0.002]
[1720038283496,1.95477245,59864.0,59863.0,0.002]
[1720038283982,1.8388859,59864.0,59863.0,0.002]
[1720038286432,1.71041685,59864.0,59863.0,0.002]
[1720038286653,1.77190807,59864.0,59863.0,1.002]
[1720038286879,1.84930807,59864.0,59863.0,1.002]
[1720038288327,1.32170807,59864.0,59863.0,1.002]
[1720038289348,1.24430807,59864.0,59863.0,1.002]
[1720038289583,1.32157274,59864.0,59863.0,1.002]
[1720038289975,1.24417274,59864.0,59863.0,1.002]
[1720038290187,1.32157274,59864.0,59863.0,1.002]
[1720038290544,1.39646045,59864.0,59863.0,1.002]
[1720038291398,1.32157274,59864.0,59863.0,1.002]
[1720038291650,1.44638559,59864.0,59863.0,1.002]
[1720038292125,1.35244407,59864.0,59863.0,1.002]
[1720038292351,1.42984407,59864.0,59863.0,1.002]
[1720038292584,1.30503122,59864.0,59863.0,1.002]
[1720038292822,1.34392146,59864.0,59863.0,1.002]
[1720038293070,1.36046298,59864.0,59863.0,1.002]
[1720038295384,1.36046298,59864.0,59863.0,1.00283]
[1720038295587,1.36137599,59864.0,59863.0,1.00283]
[1720038296068,1.28371237,59864.0,59863.0,1.00283]
[1720038296271,1.36111237,59864.0,59863.0,1.00283]
[1720038296477,1.51104373,59864.0,59863.0,1.00283]
[1720038299042,1.3611498,59864.0,59863.0,1.00283]
[1720038299374,1.22263772,59864.0,59863.0,1.00283]
[1720038299582,1.3612228,59864.0,59863.0,1.00283]
[1720038299767,1.2838228,59864.0,59863.0,1.00283]
[1720038299970,1.43377527,59864.0,59863.0,1.00283]
[1720038300175,1.51117527,59864.0,59863.0,1.00283]
[1720038300484,1.3612228,59864.0,59863.0,1.00283]
[1720038301076,1.51118161,59864.0,59863.0,1.00283]
[1720038301469,1.36123394,59864.0,59863.0,1.00283]
[1720038301673,2.71799274,59864.0,59863.0,1.00283]
[1720038301918,3.01544995,59864.0,59863.0,1.00283]
[1720038302121,2.84674351,59864.0,59863.0,1.00283]
[1720038302471,2.84674351,59864.0,59863.0,1.00183]
[1720038302693,2.84674351,59864.0,59863.0,1.00083]
[1720038303471,2.76934351,59864.0,59863.0,1.00083]
[1720038303671,2.84674351,59864.0,59863.0,1.00083]
[1720038304117,2.84674351,59864.0,59863.0,1.00183]
[1720038304118,2.86074351,59864.0,59863.0,1.00183]
[1720038304517,2.84763211,59864.0,59863.0,1.00083]
[1720038304728,2.78423211,59864.0,59863.0,1.00183]
[1720038305057,2.84763211,59864.0,59863.0,1.00083]
[1720038305261,2.86163211,59864.0,59863.0,1.00083]
[1720038305417,2.87563211,59864.0,59863.0,1.00083]
[1720038307277,2.87563211,59864.0,59863.0,0.99883]
[1720038307914,3.70972211,59864.0,59863.0,0.99883]
[1720038308084,3.70972211,59864.0,59852.0,0.00083]
[1720038308085,1.44424352,59853.0,59852.0,0.00083]
[1720038308234,2.32501513,59853.0,59852.0,0.00083]
[1720038308437,2.16684513,59853.0,59852.0,0.00083]
[1720038308645,2.42501513,59853.0,59852.0,0.00083]
[1720038309331,2.47597018,59853.0,59852.0,0.00083]
[1720038309520,2.56237018,59853.0,59852.0,0.00183]
[1720038310344,2.56237018,59853.0,59852.0,0.00083]
[1720038310345,2.88752218,59853.0,59852.0,0.00083]
[1720038310556,2.88729375,59853.0,59852.0,0.00083]
[1720038310995,3.05578636,59853.0,59852.0,0.00083]
[1720038311162,2.62949432,59853.0,59852.0,0.00183]
[1720038311377,3.59725938,59853.0,59852.0,0.00183]
[1720038311689,3.59725938,59853.0,59833.0,0.00834]
[1720038311690,0.51792852,59834.0,59833.0,0.00834]
[1720038311830,1.5256228,59834.0,59833.0,0.00834]
[1720038312238,1.4009359,59834.0,59833.0,0.00834]
[1720038312450,1.62554274,59834.0,59833.0,0.00834]
[1720038313013,1.72436365,59834.0,59833.0,0.00934]
[1720038313331,1.98253365,59834.0,59833.0,0.00934]
[1720038313481,1.84894707,59834.0,59833.0,0.00934]
[1720038313683,1.71185541,59834.0,59833.0,0.00934]
[1720038313862,1.76935736,59834.0,59833.0,0.00934]
[1720038314069,1.76735736,59834.0,59833.0,0.00934]
[1720038314268,1.64277422,59834.0,59833.0,0.00934]
[1720038314474,1.64277422,59834.0,59833.0,0.01034]
[1720038314475,2.53502063,59834.0,59833.0,0.01034]
[1720038314656,2.74470222,59834.0,59833.0,0.01034]
[1720038314848,0.25817,59826.0,59825.0,0.00084]
[1720038315062,0.25817,59826.0,59817.0,0.2773]
[1720038315063,0.01654152,59810.0,59808.0,0.00834]
[1720038315281,0.94851303,59809.0,59808.0,0.00834]
[1720038315486,1.26920416,59809.0,59808.0,0.00834]
[1720038315689,1.31480439,59809.0,59808.0,0.00834]
[1720038315923,1.33134591,59809.0,59808.0,0.00834]
[1720038316145,1.33134591,59809.0,59808.0,0.01134]
[1720038316347,1.70137883,59809.0,59808.0,0.01134]
[1720038316529,1.80137883,59809.0,59808.0,0.00834]
[1720038316722,1.80930286,59809.0,59808.0,0.00934]
[1720038316985,1.80930286,59809.0,59803.0,0.00835]
[1720038316986,0.74192352,59804.0,59803.0,0.00835]
[1720038317211,1.40679706,59804.0,59803.0,0.00835]
[1720038317420,2.84442586,59804.0,59803.0,0.00835]
[1720038317569,1.20280586,59804.0,59803.0,0.00835]
[1720038317769,1.15567691,59804.0,59803.0,0.00835]
[1720038318136,1.13913539,59804.0,59803.0,0.00835]
[1720038318515,1.0963608,59804.0,59803.0,0.00835]
[1720038318921,1.1093608,59804.0,59803.0,0.00935]
[1720038319259,1.12590232,59804.0,59803.0,0.00935]
[1720038319467,1.50465454,59804.0,59803.0,0.00935]
[1720038319684,1.50465454,59804.0,59803.0,0.01035]
[1720038319685,1.77582701,59804.0,59803.0,0.01035]
[1720038320174,1.77582691,59804.0,59803.0,0.01035]
[1720038320303,1.76282691,59804.0,59803.0,0.00935]
[1720038320507,2.09625191,59804.0,59803.0,0.00935]
[1720038320708,1.77582691,59804.0,59803.0,0.01035]
[1720038320915,2.26942691,59804.0,59803.0,0.01035]
[1720038321123,2.59185191,59804.0,59803.0,0.00935]
[1720038321338,2.60485191,59804.0,59803.0,0.01035]
[1720038321788,2.07682691,59804.0,59803.0,0.01035]
[1720038322079,2.19909732,59804.0,59803.0,0.00835]
[1720038322277,2.21309732,59804.0,59803.0,0.00935]
[1720038322525,2.22709732,59804.0,59803.0,0.01035]
[1720038322680,2.21309732,59804.0,59803.0,0.00935]
[1720038322888,1.65492732,59804.0,59803.0,0.00935]
[1720038323098,1.65492732,59804.0,59803.0,0.01035]
[1720038323099,0.7899358,59804.0,59803.0,0.01035]
[1720038323300,0.80647732,59804.0,59803.0,0.01035]
[1720038323452,1.11290232,59804.0,59803.0,0.00835]
[1720038323653,1.14090232,59804.0,59803.0,0.00935]
[1720038324147,1.1243608,59804.0,59803.0,0.00835]
[1720038324278,1.1103608,59804.0,59803.0,0.00835]
[1720038324477,1.14090232,59804.0,59803.0,0.00835]
[1720038325129,1.12690232,59804.0,59803.0,0.00835]
[1720038325669,1.14090232,59804.0,59803.0,0.00935]
[1720038325851,1.11290232,59804.0,59803.0,0.00835]
[1720038326050,1.12590232,59804.0,59803.0,0.00835]
[1720038326291,1.13990232,59804.0,59803.0,0.00935]
[1720038326908,1.1233608,59804.0,59803.0,0.00935]
[1720038327129,1.1093608,59804.0,59803.0,0.00835]
[1720038327297,1.11290232,59804.0,59803.0,0.00935]
[1720038327514,1.14090232,59804.0,59803.0,0.00935]
[1720038328062,1.12690232,59804.0,59803.0,0.00935]
[1720038328264,1.13790232,59804.0,59803.0,0.00935]
[1720038328671,1.12390232,59804.0,59803.0,0.00835]
[1720038328880,1.12390232,59804.0,59803.0,0.00935]
[1720038329075,1.13690232,59804.0,59803.0,0.00935]
[1720038330458,1.47132732,59804.0,59803.0,0.00935]
[1720038330724,2.19119732,59804.0,59803.0,0.00935]
[1720038330948,2.69119732,59804.0,59803.0,0.00935]
[1720038331157,3.02562232,59804.0,59803.0,0.00935]
[1720038331555,3.01462232,59804.0,59803.0,0.00935]
[1720038331757,3.02562232,59804.0,59803.0,0.00835]
[1720038331967,3.01262232,59804.0,59803.0,0.00835]
[1720038332180,3.01262232,59804.0,59803.0,0.00935]
[1720038332181,3.02562232,59804.0,59803.0,0.00935]
[1720038332411,3.02562232,59804.0,59803.0,0.001]
[1720038332412,3.36198538,59804.0,59803.0,0.001]
[1720038332566,2.07970052,59801.0,59800.0,4e-05]
[1720038332779,2.7712755,59801.0,59800.0,4e-05]
[1720038332953,1.44541552,59793.0,59792.0,0.00835]
[1720038333167,1.70571432,59793.0,59792.0,0.00835]
[1720038333371,3.03370132,59793.0,59792.0,0.00835]
[1720038333571,3.19406438,59793.0,59792.0,0.00835]
[1720038333805,0.836385,59781.0,59780.0,0.4892]
[1720038334006,0.936385,59781.0,59780.0,0.4892]
[1720038334172,0.95292652,59781.0,59780.0,0.4892]
[1720038334596,0.167292,59776.0,59775.0,0.4892]
[1720038334756,0.501874,59776.0,59775.0,0.4892]
[1720038336756,0.167292,59776.0,59775.0,0.4892]
[1720038336957,0.170292,59776.0,59775.0,0.4892]